bitfinex/quotes_SOLUSD_20230402
["timestamp","ask_amount","ask_price","bid_price","bid_amount"]
[1680419450064,10.0,21.194,21.183,17.0]
[1680419450455,10.0,21.196,21.183,17.0]
[1680419458262,10.0,21.196,21.181,17.0]
[1680419458462,10.0,21.196,21.18,10.0]
[1680419458770,10.0,21.196,21.182,10.0]
[1680419460373,10.0,21.196,21.18,10.0]
[1680419460573,10.0,21.196,21.182,10.0]
[1680419461075,10.0,21.196,21.18,10.0]
[1680419461076,10.0,21.194,21.18,10.0]
[1680419461579,10.0,21.194,21.178,10.0]
[1680419461959,10.0,21.194,21.18,10.0]
[1680419463068,10.0,21.194,21.171,7.11155295]
[1680419463270,26.53,21.19,21.169,18.890298]
[1680419463570,26.53,21.19,21.17,40.0]
[1680419463571,27.0,21.189,21.17,40.0]
[1680419463959,27.0,21.189,21.172,10.0]
[1680419464859,10.0,21.187,21.172,10.0]
[1680419465870,117.5206,21.188,21.172,10.0]
[1680419466375,117.5206,21.188,21.174,10.0]
[1680419467186,26.53,21.19,21.174,10.0]
[1680419476678,10.0,21.189,21.174,10.0]
[1680419476878,10.0,21.189,21.172,10.0]
[1680419477394,10.0,21.189,21.174,10.0]
[1680419477993,26.518,21.189,21.173,20.0]
[1680419478190,17.0,21.188,21.173,20.0]
[1680419478394,10.0,21.187,21.173,20.0]
[1680419479197,10.0,21.187,21.172,10.0]
[1680419479495,10.0,21.185,21.174,10.0]
[1680419479695,10.0,21.185,21.173,20.0]
[1680419481585,10.0,21.185,21.172,10.0]
[1680419481786,10.0,21.185,21.174,10.0]
[1680419481985,10.0,21.185,21.172,10.0]
[1680419482186,10.0,21.185,21.173,20.0]
[1680419482997,10.0,21.185,21.172,10.0]
[1680419483196,10.0,21.185,21.173,20.0]
[1680419484499,10.0,21.185,21.172,10.0]
[1680419484700,10.0,21.185,21.174,10.0]
[1680419485197,10.0,21.185,21.172,10.0]
[1680419485400,10.0,21.185,21.173,20.0]
[1680419486903,10.0,21.183,21.173,20.0]
[1680419487598,10.0,21.183,21.172,10.0]
[1680419487796,10.0,21.183,21.173,20.0]
[1680419487999,17.0,21.184,21.173,20.0]
[1680419488511,109.7696,21.186,21.174,10.0]
[1680419490716,109.7696,21.186,21.176,10.0]
[1680419490901,109.7696,21.186,21.178,10.0]
[1680419491091,109.7696,21.186,21.176,10.0]
[1680419491296,109.7696,21.186,21.177,17.0]
[1680419491894,10.0,21.193,21.178,10.0]
[1680419492095,10.0,21.193,21.18,10.0]
[1680419492294,10.0,21.193,21.181,17.0]
[1680419498717,10.0,21.195,21.181,17.0]
[1680419499015,10.0,21.193,21.181,17.0]
[1680419499613,10.0,21.193,21.178,10.0]
[1680419501717,10.0,21.193,21.176,10.0]
[1680419505512,10.0,21.191,21.176,10.0]
[1680419505895,10.0,21.191,21.175,236.5079]
[1680419506818,10.0,21.189,21.175,236.5079]
[1680419507123,10.0,21.189,21.173,20.0]
[1680419507124,10.0,21.189,21.174,10.0]
[1680419507306,10.0,21.187,21.174,10.0]
[1680419509098,10.0,21.187,21.173,20.0]
[1680419509420,10.0,21.185,21.171,18.887956]
[1680419509619,10.0,21.183,21.171,18.887956]
[1680419514221,10.0,21.183,21.168,10.0]
[1680419516920,10.0,21.185,21.168,10.0]
[1680419517100,10.0,21.183,21.168,10.0]
[1680419521130,10.0,21.183,21.165,16.50431742]
[1680419521338,10.0,21.179,21.165,16.50431742]
[1680419521624,10.0,21.177,21.165,16.50431742]
[1680419522334,10.0,21.177,21.164,77.5137]
[1680419523022,10.0,21.179,21.165,10.0]
[1680419523223,10.0,21.177,21.165,10.0]
[1680419523415,10.0,21.177,21.161,10.0]
[1680419523604,10.0,21.175,21.162,50.0]
[1680419523807,10.0,21.175,21.163,10.0]
[1680419524228,17.0,21.174,21.162,50.0]
[1680419524616,17.0,21.174,21.162,20.0]
[1680419524816,17.0,21.174,21.162,10.0]
[1680419525027,17.0,21.174,21.164,10.0]
[1680419525523,17.0,21.174,21.163,20.0]
[1680419526522,17.0,21.174,21.163,10.0]
[1680419526920,122.6568,21.179,21.163,10.0]
[1680419527226,10.0,21.177,21.163,10.0]
[1680419531225,122.6568,21.179,21.163,10.0]
[1680419531226,112.6568,21.179,21.163,10.0]
[1680419531430,112.6568,21.179,21.165,10.0]
[1680419532335,10.0,21.185,21.165,10.0]
[1680419532521,10.0,21.183,21.165,10.0]
[1680419532835,10.0,21.181,21.165,10.0]
[1680419534935,9.5,21.181,21.165,10.0]
[1680419535426,10.0,21.183,21.167,10.0]
[1680419535818,10.0,21.183,21.169,10.0]
[1680419536020,10.0,21.183,21.17,17.0]
[1680419539835,10.0,21.183,21.169,10.0]
[1680419541637,10.0,21.181,21.167,10.0]
[1680419546238,20.0,21.184,21.167,10.0]
[1680419546428,20.0,21.184,21.169,10.0]
[1680419546824,10.0,21.183,21.169,10.0]
[1680419552649,10.0,21.183,21.171,10.0]
[1680419554046,10.0,21.183,21.169,10.0]
[1680419554232,10.0,21.183,21.171,10.0]
[1680419556641,10.0,21.183,21.169,10.0]
[1680419556838,10.0,21.183,21.171,10.0]
[1680419557040,10.0,21.183,21.169,10.0]
[1680419557237,10.0,21.183,21.167,10.0]
[1680419557548,26.58,21.18,21.162,20.0]
[1680419557748,10.0,21.179,21.162,20.0]
[1680419564651,10.0,21.183,21.164,136.3521]
[1680419564962,10.0,21.183,21.167,10.0]
[1680419565145,10.0,21.183,21.169,10.0]
[1680419566858,26.53,21.18,21.164,119.8151]
[1680419567156,10.0,21.178,21.164,119.8151]
[1680419570048,10.0,21.179,21.164,119.8151]
[1680419570049,26.53,21.18,21.164,119.8151]
[1680419570248,10.0,21.181,21.164,119.8151]
[1680419579880,10.0,21.179,21.164,119.8151]
[1680419580379,10.0,21.177,21.164,119.8151]
[1680419581383,10.0,21.179,21.164,119.8151]
[1680419582780,10.0,21.181,21.164,119.8151]
[1680419582977,10.0,21.179,21.164,119.8151]
[1680419586777,20.0,21.184,21.169,10.0]
[1680419586964,20.0,21.183,21.17,17.0]
[1680419587268,10.0,21.184,21.171,10.0]
[1680419587473,20.0,21.183,21.171,10.0]
[1680419588076,10.0,21.184,21.171,10.0]
[1680419588272,20.0,21.183,21.172,17.0]
[1680419588579,109.9043,21.189,21.174,10.0]
[1680419593481,26.69,21.19,21.174,10.0]
[1680419593668,20.0,21.192,21.18,53.16]
[1680419593868,20.0,21.192,21.181,27.0]
[1680419594074,20.0,21.192,21.183,10.0]
[1680419594273,20.0,21.192,21.185,10.0]
[1680419594478,20.0,21.192,21.186,17.0]
[1680419597996,20.0,21.192,21.187,10.0]
[1680419598194,20.0,21.192,21.188,17.0]
[1680419599494,10.0,21.206,21.188,17.0]
[1680419599706,10.0,21.204,21.188,17.0]
[1680419599997,10.0,21.202,21.189,10.0]
[1680419600297,10.0,21.202,21.191,10.0]
[1680419600699,10.0,21.202,21.19,17.0]
[1680419602794,10.0,21.202,21.189,10.0]
[1680419602994,10.0,21.202,21.19,17.0]
[1680419604908,10.0,21.202,21.189,10.0]
[1680419605200,10.0,21.202,21.19,17.0]
[1680419605979,10.0,21.202,21.189,10.0]
[1680419606181,10.0,21.202,21.191,10.0]
[1680419607003,18.882804,21.204,21.191,10.0]
[1680419607203,10.0,21.202,21.191,10.0]
[1680419609000,10.0,21.202,21.189,10.0]
[1680419609205,10.0,21.202,21.191,10.0]
[1680419611508,10.0,21.206,21.191,10.0]
[1680419611687,10.0,21.204,21.192,17.0]
[1680419611890,10.0,21.202,21.192,17.0]
[1680419612320,10.0,21.202,21.187,10.0]
[1680419612607,10.0,21.202,21.189,10.0]
[1680419612793,10.0,21.202,21.191,10.0]
[1680419614404,10.0,21.202,21.19,17.0]
[1680419615111,10.0,21.202,21.189,10.0]
[1680419615411,10.0,21.202,21.19,17.0]
[1680419617002,10.0,21.202,21.189,10.0]
[1680419617199,10.0,21.202,21.19,17.0]
[1680419620218,10.0,21.202,21.189,10.0]
[1680419620418,10.0,21.202,21.19,17.0]
[1680419622021,10.0,21.202,21.189,10.0]
[1680419622209,10.0,21.202,21.191,10.0]
[1680419622724,10.0,21.202,21.189,10.0]
[1680419623022,10.0,21.202,21.187,10.0]
[1680419623320,10.0,21.2,21.186,115.8534]
[1680419627020,36.69,21.2,21.186,115.8534]
[1680419631122,20.0,21.203,21.186,115.8534]
[1680419631422,10.0,21.205,21.187,10.0]
[1680419631628,10.0,21.203,21.188,17.0]
[1680419634126,10.0,21.203,21.186,115.8534]
[1680419634429,10.0,21.199,21.181,10.0]
[1680419634644,10.0,21.199,21.182,20.0]
[1680419634828,10.0,21.199,21.183,10.0]
[1680419640526,10.0,21.199,21.185,10.0]
[1680419643735,10.0,21.199,21.186,17.0]
[1680419645020,10.0,21.199,21.185,10.0]
[1680419645226,10.0,21.197,21.183,10.0]
[1680419648038,10.0,21.197,21.182,20.0]
[1680419648241,10.0,21.197,21.184,10.0]
[1680419650938,10.0,21.199,21.185,17.0]
[1680419658643,10.0,21.199,21.184,10.0]
[1680419658828,10.0,21.199,21.185,17.0]
[1680419660141,10.0,21.199,21.184,17.0]
[1680419662745,10.0,21.199,21.183,10.0]
[1680419662951,10.0,21.197,21.182,20.0]
[1680419663247,10.0,21.195,21.182,10.0]
[1680419663546,10.0,21.195,21.183,20.0]
[1680419667030,10.0,21.195,21.182,10.0]
[1680419667231,10.0,21.195,21.184,10.0]
[1680419667847,10.0,21.195,21.182,10.0]
[1680419668044,108.5021,21.197,21.184,10.0]
[1680419668232,10.0,21.195,21.184,10.0]
[1680419668752,10.0,21.195,21.183,20.0]
[1680419668951,10.0,21.195,21.182,10.0]
[1680419669148,10.0,21.195,21.184,10.0]
[1680419670542,10.0,21.196,21.184,10.0]
[1680419674258,108.5021,21.197,21.184,10.0]
[1680419674561,10.0,21.196,21.182,10.0]
[1680419674867,10.0,21.196,21.184,10.0]
[1680419676559,10.0,21.196,21.184,10.0]
[1680419679463,10.0,21.196,21.182,10.0]
[1680419679763,10.0,21.194,21.182,10.0]
[1680419679951,10.0,21.192,21.182,10.0]
[1680419680557,10.0,21.194,21.182,10.0]
[1680419680958,10.0,21.192,21.182,10.0]
[1680419681759,20.0,21.193,21.182,10.0]
[1680419683170,20.0,21.193,21.18,10.0]
[1680419683467,20.0,21.193,21.182,10.0]
[1680419683867,20.0,21.193,21.181,17.0]
[1680419684070,10.0,21.192,21.18,10.0]
[1680419684264,10.0,21.192,21.181,17.0]
[1680419687371,10.0,21.194,21.182,10.0]
[1680419687562,10.0,21.194,21.183,20.0]
[1680419689476,10.0,21.194,21.183,10.0]
[1680419689861,10.0,21.194,21.181,17.0]
[1680419689862,10.0,21.192,21.181,17.0]
[1680419691082,10.0,21.197,21.183,10.0]
[1680419691262,10.0,21.197,21.185,10.0]
[1680419692863,10.0,21.197,21.184,17.0]
[1680419696769,10.0,21.199,21.185,10.0]
[1680419696971,10.0,21.199,21.186,17.0]
[1680419699466,10.0,21.199,21.185,10.0]
[1680419699667,10.0,21.199,21.187,10.0]
[1680419699976,26.69,21.2,21.189,10.0]
[1680419701080,26.69,21.2,21.187,10.0]
[1680419701487,10.0,21.199,21.187,10.0]
[1680419701868,10.0,21.199,21.185,10.0]
[1680419702064,10.0,21.199,21.187,10.0]
[1680419702784,10.0,21.199,21.188,17.0]
[1680419703679,10.0,21.204,21.189,10.0]
[1680419703879,10.0,21.204,21.191,10.0]
[1680419704101,10.0,21.202,21.192,17.0]
[1680419704590,10.0,21.202,21.19,17.0]
[1680419707589,10.0,21.204,21.19,17.0]
[1680419707791,10.0,21.202,21.19,17.0]
[1680419710001,10.0,21.204,21.19,17.0]
[1680419710194,20.0,21.203,21.191,10.0]
[1680419710497,26.69,21.21,21.203,0.06885963]
[1680419710677,16.495,21.218,21.203,0.06885963]
[1680419710678,10.0,21.215,21.203,0.06885963]
[1680419711593,77.1527774,21.215,21.203,0.06885963]
[1680419712985,10.0,21.213,21.203,0.06885963]
[1680419714196,10.0,21.208,21.203,0.06885963]
[1680419715694,10.0,21.208,21.203,0.00537675]
[1680419717587,18.879463,21.209,21.203,0.00537675]
[1680419720892,10.0,21.213,21.203,0.00537675]
[1680419721781,10.0,21.218,21.204,10.0]
[1680419721989,10.0,21.218,21.205,17.0]
[1680419722195,10.0,21.218,21.206,10.0]
[1680419722394,10.0,21.223,21.208,10.0]
[1680419722599,108.0383,21.23,21.212,16.499]
[1680419722895,10.0,21.229,21.214,10.0]
[1680419723192,10.0,21.229,21.211,10.0]
[1680419723492,10.0,21.229,21.209,50.78334177]
[1680419723493,10.0,21.235,21.22,26.69]
[1680419723682,10.0,21.235,21.221,10.0]
[1680419723881,18.865089,21.222,21.216,10.0]
[1680419724081,18.865089,21.222,21.217,17.0]
[1680419724277,22.961046,21.239,21.218,10.0]
[1680419724492,12.961046,21.239,21.221,10.0]
[1680419724693,12.961046,21.239,21.222,20.0]
[1680419724883,12.961046,21.239,21.223,27.0]
[1680419725084,12.961046,21.239,21.223,10.0]
[1680419725283,16.48,21.237,21.21,69.681]
[1680419725493,10.0,21.236,21.211,27.0]
[1680419725689,10.0,21.234,21.211,27.0]
[1680419725896,10.0,21.232,21.211,27.0]
[1680419726084,10.0,21.232,21.211,34.11155295]
[1680419727387,20.0,21.233,21.211,34.11155295]
[1680419727591,20.0,21.235,21.215,10.0]
[1680419727900,10.0,21.236,21.217,10.0]
[1680419728086,10.0,21.234,21.219,10.0]
[1680419728287,10.0,21.234,21.22,17.0]
[1680419728488,10.0,21.232,21.22,17.0]
[1680419729183,10.0,21.234,21.22,17.0]
[1680419729385,20.0,21.233,21.22,17.0]
[1680419730601,20.0,21.233,21.219,10.0]
[1680419730782,10.0,21.232,21.219,10.0]
[1680419730984,10.0,21.232,21.218,17.0]
[1680419732096,10.0,21.232,21.217,10.0]
[1680419732291,20.0,21.233,21.219,10.0]
[1680419732580,10.0,21.234,21.22,14.5]
[1680419732783,10.0,21.232,21.218,17.0]
[1680419732982,10.0,21.232,21.217,10.0]
[1680419734498,10.0,21.232,21.215,10.0]
[1680419734703,10.0,21.232,21.217,10.0]
[1680419735507,10.0,21.232,21.219,10.0]
[1680419739000,10.0,21.232,21.216,17.0]
[1680419739502,10.0,21.232,21.216,10.0]
[1680419740709,26.484,21.232,21.212,10.0]
[1680419740906,10.0,21.23,21.212,10.0]
[1680419741495,121.9519,21.23,21.212,10.0]
[1680419743092,10.0,21.227,21.212,10.0]
[1680419745114,148.5119,21.23,21.214,10.0]
[1680419747599,148.5119,21.23,21.212,10.0]
[1680419747809,10.0,21.228,21.212,10.0]
[1680419750014,10.0,21.228,21.208,128.34685295]
[1680419750309,10.0,21.226,21.21,10.0]
[1680419750613,10.0,21.226,21.212,10.0]
[1680419754700,10.0,21.226,21.204,50.38588556]
[1680419754701,10.0,21.224,21.204,50.38588556]
[1680419754901,17.0,21.223,21.203,16.47473839]
[1680419755114,10.0,21.222,21.204,10.0]
[1680419755322,10.0,21.22,21.201,10.0]
[1680419755619,10.0,21.218,21.201,10.0]
[1680419756510,53.054,21.22,21.201,10.0]
[1680419757114,10.0,21.218,21.201,10.0]
[1680419757313,10.0,21.218,21.201,17.11155295]
[1680419759719,228.3206,21.219,21.201,17.11155295]
[1680419760218,10.0,21.218,21.201,17.11155295]
[1680419761314,10.0,21.218,21.203,10.0]
[1680419763403,10.0,21.218,21.205,10.0]
[1680419763614,228.3206,21.219,21.205,10.0]
[1680419763803,228.3206,21.219,21.207,10.0]
[1680419764623,228.3206,21.219,21.205,10.0]
[1680419764820,228.3206,21.219,21.207,10.0]
[1680419765118,228.3206,21.219,21.206,17.0]
[1680419765632,10.0,21.218,21.206,17.0]
[1680419765920,10.0,21.218,21.205,10.0]
[1680419766121,10.0,21.218,21.206,17.0]
[1680419768121,10.0,21.218,21.203,10.0]
[1680419769321,10.0,21.218,21.202,10.0]
[1680419775125,10.0,21.218,21.197,123.9455]
[1680419775308,37.0,21.217,21.201,18.863498]
[1680419775625,10.0,21.209,21.201,18.863498]
[1680419777015,10.0,21.209,21.193,10.0]
[1680419777016,17.0,21.208,21.193,10.0]
[1680419777210,17.0,21.208,21.191,25.8611987]
[1680419777211,36.504,21.207,21.191,15.8611987]
[1680419777410,26.53,21.2,21.191,15.8611987]
[1680419777830,17.0,21.199,21.191,15.8611987]
[1680419778010,27.0,21.199,21.182,25.86793795]
[1680419778217,27.0,21.199,21.183,15.86718886]
[1680419778418,10.0,21.198,21.183,15.86718886]
[1680419778615,17.0,21.197,21.183,15.86718886]
[1680419778834,10.0,21.196,21.183,15.86718886]
[1680419779016,17.0,21.195,21.183,15.86718886]
[1680419779342,10.0,21.194,21.183,15.86718886]
[1680419780529,10.0,21.198,21.184,10.0]
[1680419780735,10.0,21.198,21.185,15.86569089]
[1680419781237,10.0,21.196,21.185,15.86569089]
[1680419785318,10.0,21.196,21.182,10.0]
[1680419785533,10.0,21.196,21.183,20.0]
[1680419786430,10.0,21.196,21.184,10.0]
[1680419788524,10.0,21.196,21.183,20.0]
[1680419793923,10.0,21.194,21.183,10.0]
[1680419795238,10.0,21.194,21.182,20.0]
[1680419795842,10.0,21.196,21.182,20.0]
[1680419796144,10.0,21.194,21.183,10.0]
[1680419796542,10.0,21.196,21.183,10.0]
[1680419798044,10.0,21.196,21.184,17.0]
[1680419799648,10.0,21.196,21.184,10.0]
[1680419802445,10.0,21.196,21.183,17.0]
[1680419804749,10.0,21.196,21.182,20.0]
[1680419804950,10.0,21.196,21.184,10.0]
[1680419806237,10.0,21.196,21.183,17.0]
[1680419807140,10.0,21.196,21.182,20.0]
[1680419807450,10.0,21.196,21.183,27.0]
[1680419808848,10.0,21.196,21.183,10.0]
[1680419811247,113.7704,21.197,21.183,10.0]
[1680419811456,10.0,21.196,21.183,10.0]
[1680419814760,10.0,21.196,21.182,20.0]
[1680419815074,10.0,21.196,21.183,20.0]
[1680419815364,10.0,21.196,21.182,10.0]
[1680419815659,10.0,21.196,21.183,20.0]
[1680419816759,10.0,21.196,21.184,15.04327415]
[1680419817661,10.0,21.196,21.183,20.0]
[1680419817863,10.0,21.196,21.182,10.0]
[1680419818172,10.0,21.196,21.183,20.0]
[1680419819544,10.0,21.196,21.18,10.0]
[1680419819746,10.0,21.196,21.182,10.0]
[1680419819959,10.0,21.196,21.183,20.0]
[1680419820660,10.0,21.194,21.183,20.0]
[1680419820966,10.0,21.194,21.182,10.0]
[1680419821150,10.0,21.194,21.183,20.0]
[1680419822446,10.0,21.194,21.182,10.0]
[1680419822769,10.0,21.194,21.183,20.0]
[1680419824067,10.0,21.194,21.182,10.0]
[1680419824251,10.0,21.196,21.183,20.0]
[1680419824452,10.0,21.194,21.183,20.0]
[1680419825353,10.0,21.194,21.182,10.0]
[1680419825553,10.0,21.194,21.183,20.0]
[1680419827051,10.0,21.194,21.182,10.0]
[1680419827251,10.0,21.194,21.183,20.0]
[1680419827767,17.0,21.195,21.183,20.0]
[1680419828970,113.7704,21.197,21.183,20.0]
[1680419829163,10.0,21.195,21.183,20.0]
[1680419831357,10.0,21.195,21.182,10.0]
[1680419831560,10.0,21.195,21.184,10.0]
[1680419832772,17.0,21.196,21.184,10.0]
[1680419833472,10.0,21.195,21.183,20.0]
[1680419834556,10.0,21.195,21.183,10.0]
[1680419838877,10.0,21.195,21.182,20.0]
[1680419841473,10.0,21.195,21.18,10.0]
[1680419841674,10.0,21.195,21.182,10.0]
[1680419841880,10.0,21.195,21.183,20.0]
[1680419844064,10.0,21.195,21.183,10.0]
[1680419846086,10.0,21.195,21.182,20.0]
[1680419846976,10.0,21.195,21.182,10.0]
[1680419847282,10.0,21.195,21.184,10.0]
[1680419848284,10.0,21.195,21.182,10.0]
[1680419848482,10.0,21.195,21.184,10.0]
[1680419849480,17.0,21.196,21.183,20.0]
[1680419853891,10.0,21.195,21.183,20.0]
[1680419854490,10.0,21.195,21.182,10.0]
[1680419854991,10.0,21.193,21.182,10.0]
[1680419856774,10.0,21.193,21.18,31.21]
[1680419857093,10.0,21.193,21.18,10.0]
[1680419865699,10.0,21.193,21.177,128.1559]
[1680419865881,10.0,21.193,21.18,10.0]
[1680419867681,10.0,21.193,21.179,17.0]
[1680419867888,10.0,21.193,21.179,10.0]
[1680419868095,10.0,21.193,21.181,10.0]
[1680419870401,113.7704,21.197,21.182,17.0]
[1680419870600,113.7704,21.197,21.183,10.0]
[1680419870779,10.0,21.195,21.183,10.0]
[1680419871096,20.0,21.194,21.183,10.0]
[1680419871494,20.0,21.194,21.182,17.0]
[1680419872193,20.0,21.194,21.181,10.0]
[1680419873187,10.0,21.193,21.179,10.0]
[1680419873394,10.0,21.193,21.181,10.0]
[1680419878898,20.0,21.194,21.181,10.0]
[1680419879100,20.0,21.194,21.183,10.0]
[1680419879982,20.0,21.194,21.181,10.0]
[1680419880182,20.0,21.194,21.183,10.0]
[1680419880700,20.0,21.194,21.181,10.0]
[1680419880894,20.0,21.194,21.182,17.0]
[1680419883406,20.0,21.194,21.181,10.0]
[1680419884007,10.0,21.193,21.179,10.0]
[1680419886307,10.0,21.193,21.172,23.64255295]
[1680419886488,10.0,21.193,21.179,17.0]
[1680419886905,10.0,21.193,21.18,10.0]
[1680419889602,10.0,21.193,21.179,17.0]
[1680419899416,20.0,21.194,21.18,10.0]
[1680419900716,10.0,21.193,21.18,10.0]
[1680419900914,10.0,21.193,21.179,17.0]
[1680419903201,10.0,21.193,21.179,10.0]
[1680419905318,10.0,21.193,21.181,10.0]
[1680419906220,10.0,21.193,21.179,10.0]
[1680419906420,10.0,21.193,21.181,10.0]
[1680419907027,21.06,21.19,21.179,10.0]
[1680419907208,21.06,21.19,21.181,10.0]
[1680419907412,21.06,21.19,21.179,10.0]
[1680419907609,21.06,21.19,21.181,10.0]
[1680419908326,21.06,21.19,21.179,10.0]
[1680419908526,21.06,21.19,21.181,10.0]
[1680419909225,21.06,21.19,21.179,10.0]
[1680419909408,21.06,21.19,21.18,17.0]
[1680419912325,21.06,21.19,21.18,10.0]
[1680419914309,21.06,21.19,21.179,17.0]
[1680419921429,21.06,21.19,21.179,17.0]
[1680419925733,21.06,21.19,21.179,10.0]
[1680419932643,21.06,21.19,21.178,17.0]
[1680419934531,21.06,21.19,21.176,10.0]
[1680419934838,27.0,21.189,21.176,10.0]
[1680419935231,27.0,21.189,21.172,10.0]
[1680419935428,10.0,21.187,21.174,30.0]
[1680419936341,10.0,21.187,21.174,10.0]
[1680419937035,21.06,21.18,21.173,20.0]
[1680419937240,21.06,21.18,21.172,20.0]
[1680419943135,21.06,21.18,21.169,10.0]
[1680419943337,21.06,21.18,21.171,10.0]
[1680419943545,21.04,21.18,21.172,20.0]
[1680419945345,21.04,21.18,21.17,30.0]
[1680419945545,21.04,21.18,21.167,57.43]
[1680419945546,10.0,21.179,21.167,10.0]
[1680419945844,27.0,21.179,21.167,10.0]
[1680419946945,27.0,21.179,21.165,10.0]
[1680419947244,27.0,21.179,21.167,10.0]
[1680419951039,27.0,21.179,21.166,20.0]
[1680419958849,21.04,21.18,21.166,20.0]
[1680419960256,10.0,21.178,21.166,20.0]
[1680419960455,10.0,21.178,21.161,26.539]
[1680419960658,10.0,21.178,21.163,10.0]
[1680419962749,10.0,21.176,21.163,10.0]
[1680419963741,10.0,21.178,21.163,10.0]
[1680419963941,10.0,21.176,21.163,10.0]
[1680419965744,10.0,21.174,21.163,10.0]
[1680419965945,10.0,21.176,21.163,10.0]
[1680419966153,10.0,21.174,21.162,30.0]
[1680419966465,17.0,21.173,21.163,20.0]
[1680419967741,17.0,21.173,21.161,10.0]
[1680419967944,17.0,21.173,21.163,10.0]
[1680419968150,17.0,21.173,21.164,16.59945639]
[1680419968551,10.0,21.173,21.164,16.59945639]
[1680419968765,17.0,21.172,21.164,16.59945639]
[1680419969866,10.0,21.173,21.164,16.59945639]
[1680419970164,17.0,21.172,21.164,16.59945639]
[1680419971556,10.0,21.172,21.164,16.59945639]
[1680419971748,17.0,21.171,21.164,16.59945639]
[1680419972162,10.0,21.172,21.164,16.59945639]
[1680419972365,17.0,21.171,21.164,16.59945639]
[1680419972867,10.0,21.172,21.164,16.59945639]
[1680419973052,17.0,21.171,21.164,16.59945639]
[1680419973458,10.0,21.172,21.164,16.59945639]
[1680419973662,17.0,21.171,21.164,16.59945639]